{"text_format":"2","workbook":"xlsx","n_sheets":9,"sheets":["CoverSheet","Suncoast","LakeRegion","Thunderbird","Timucua","Withlacoochee","FT. Brooke","Skyway","Miccosukee"],"not_rendered":{"charts":0,"images":0,"macros":0,"external_links":0,"defined_names":11,"comments":0,"pivot_tables":0},"unopened":[],"bounds":{"document_bytes":16777216,"sheet_cells":100000,"run_cost":"one","rows_first":2000,"rows_last":500,"rows_between":2000,"halvings":0,"cell_chars":16384,"cell_head_chars":4096},"cells_cut":0,"cells_raw":0,"read":"whole","date_system":"1900"}

{"sheet":"CoverSheet","index":0,"n_rows":16,"n_cols":9,"rows_kept":16,"cut":false,"hidden":false,"merged":[]}
["2018 Rechartering Status Report"]
[]
[null,"Process Status"]
[null,"Due to Recharter","Submitted","Balance","Year end number","2017 yth","Diff in youth","In Office","Processed"]
["Suncoast",{"$f":"COUNTA(Suncoast!$H:$H)-1","v":47},{"$f":"COUNTIF(Suncoast!$H:$H,\"Yes\")","v":6},{"$f":"B5-C5","v":41},{"$f":"Suncoast!$L$50","v":1674},{"$f":"Suncoast!$M$50","v":1114},{"$f":"Suncoast!$N$50","v":-560},{"$f":"COUNTIF(Suncoast!K:K,\"Yes\")","v":43},{"$f":"COUNTIF(Suncoast!J:J,\"Yes\")","v":37}]
["Ft. Brooke",{"$f":"COUNTA('FT. Brooke'!#REF!)-1","v":0},{"$f":"COUNTIF('FT. Brooke'!#REF!,\"Yes\")","v":{"$error":"#REF!"}},{"$f":"B6-C6","v":{"$error":"#REF!"}},{"$f":"'FT. Brooke'!$F$118","v":0},{"$f":"'FT. Brooke'!#REF!","v":{"$error":"#REF!"}},{"$f":"'FT. Brooke'!#REF!","v":{"$error":"#REF!"}},{"$f":"COUNTIF('FT. Brooke'!#REF!,\"Yes\")","v":{"$error":"#REF!"}},{"$f":"COUNTIF('FT. Brooke'!#REF!,\"Yes\")","v":{"$error":"#REF!"}}]
["Miccossukee",{"$f":"COUNTA(Miccosukee!#REF!)-1","v":0},{"$f":"COUNTIF(Miccosukee!#REF!,\"Yes\")","v":{"$error":"#REF!"}},{"$f":"B7-C7","v":{"$error":"#REF!"}},{"$f":"Miccosukee!$F$71","v":0},{"$f":"Miccosukee!#REF!","v":{"$error":"#REF!"}},{"$f":"Miccosukee!#REF!","v":{"$error":"#REF!"}},{"$f":"COUNTIF(Miccosukee!#REF!,\"Yes\")","v":{"$error":"#REF!"}},{"$f":"COUNTIF(Miccosukee!#REF!,\"Yes\")","v":{"$error":"#REF!"}}]
["Withlacoochee",{"$f":"COUNTA(Withlacoochee!#REF!)-1","v":0},{"$f":"COUNTIF(Withlacoochee!#REF!,\"Yes\")","v":{"$error":"#REF!"}},{"$error":"#REF!"},{"$f":"Withlacoochee!$F$42","v":0},{"$f":"Withlacoochee!#REF!","v":{"$error":"#REF!"}},{"$f":"Withlacoochee!#REF!","v":{"$error":"#REF!"}},{"$f":"COUNTIF(Withlacoochee!#REF!,\"Yes\")","v":{"$error":"#REF!"}},{"$f":"COUNTIF(Withlacoochee!#REF!,\"Yes\")","v":{"$error":"#REF!"}}]
[null,{"$f":"SUM(B5:B8)","v":47},{"$error":"#REF!"},{"$error":"#REF!"},1674,{"$error":"#REF!"},{"$error":"#REF!"},{"$error":"#REF!"},{"$error":"#REF!"}]
["Skyway",{"$f":"COUNTA(Skyway!#REF!)-1","v":0},{"$f":"COUNTIF(Skyway!#REF!,\"yes\")","v":{"$error":"#REF!"}},{"$f":"B10-C10","v":{"$error":"#REF!"}},{"$f":"Skyway!$F$46","v":0},{"$f":"Skyway!#REF!","v":{"$error":"#REF!"}},{"$f":"Skyway!#REF!","v":{"$error":"#REF!"}},{"$f":"COUNTIF(Skyway!#REF!,\"Yes\")","v":{"$error":"#REF!"}},{"$f":"COUNTIF(Skyway!#REF!,\"Yes\")","v":{"$error":"#REF!"}}]
["Lake Region",{"$f":"COUNTA(LakeRegion!#REF!)-1","v":0},{"$f":"COUNTIF(LakeRegion!#REF!,\"yes\")","v":{"$error":"#REF!"}},{"$error":"#REF!"},{"$f":"LakeRegion!$F$61","v":0},{"$f":"LakeRegion!#REF!","v":{"$error":"#REF!"}},{"$f":"LakeRegion!#REF!","v":{"$error":"#REF!"}},{"$f":"COUNTIF(LakeRegion!#REF!,\"Yes\")","v":{"$error":"#REF!"}},{"$f":"COUNTIF(LakeRegion!#REF!,\"Yes\")","v":{"$error":"#REF!"}}]
["Thunderbird",{"$f":"COUNTA(Thunderbird!#REF!)-1","v":0},{"$f":"COUNTIF(Thunderbird!#REF!,\"yes\")","v":{"$error":"#REF!"}},{"$error":"#REF!"},{"$f":"Thunderbird!$F$29","v":0},{"$f":"Thunderbird!#REF!","v":{"$error":"#REF!"}},{"$f":"Thunderbird!#REF!","v":{"$error":"#REF!"}},{"$f":"COUNTIF(Thunderbird!#REF!,\"Yes\")","v":{"$error":"#REF!"}},{"$f":"COUNTIF(Thunderbird!#REF!,\"Yes\")","v":{"$error":"#REF!"}}]
["Timucua",{"$f":"COUNTA(Timucua!#REF!)-1","v":0},{"$f":"COUNTIF(Timucua!#REF!,\"yes\")","v":{"$error":"#REF!"}},{"$error":"#REF!"},{"$f":"Timucua!$F$76","v":0},{"$f":"Timucua!#REF!","v":{"$error":"#REF!"}},{"$f":"Timucua!#REF!","v":{"$error":"#REF!"}},{"$f":"COUNTIF(Timucua!#REF!,\"Yes\")","v":{"$error":"#REF!"}},{"$f":"COUNTIF(Timucua!#REF!,\"Yes\")","v":{"$error":"#REF!"}}]
[null,{"$f":"SUM(B11:B13)","v":0},{"$f":"SUM(C11:C13)","v":{"$error":"#REF!"}},{"$error":"#REF!"},{"$f":"SUM(E11:E13)","v":0},{"$f":"SUM(F11:F13)","v":{"$error":"#REF!"}},{"$f":"SUM(G11:G13)","v":{"$error":"#REF!"}},{"$f":"SUM(H11:H13)","v":{"$error":"#REF!"}},{"$f":"SUM(I11:I13)","v":{"$error":"#REF!"}}]
[]
["TOTAL",{"$f":"SUM(B9,B14)","v":47},{"$f":"SUM(C9,C14)","v":{"$error":"#REF!"}},{"$error":"#REF!"},{"$f":"SUM(E9,E14)","v":1674},{"$f":"SUM(F9,F14)","v":{"$error":"#REF!"}},{"$f":"SUM(G9,G14)","v":{"$error":"#REF!"}},{"$f":"SUM(H9,H14)","v":{"$error":"#REF!"}},{"$f":"SUM(I9,I14)","v":{"$error":"#REF!"}}]

{"sheet":"Suncoast","index":1,"n_rows":50,"n_cols":15,"rows_kept":50,"cut":false,"hidden":false,"merged":[]}
["unit","number","organization_name","Contact Name","Contact Phone","JTE Level","submitted_date","on_hold","posted_date","Posted","In Office","Year end number","Rechartered yth 2017","Plus-minus yth","Deffective reason/notes"]
["Crew","0007","St Thomas Aquinas Catholic Church","Jonathan Carter","727-505-8079",null,null,"No",null,null,null,5,null,{"$f":"M2-L2","v":-5}]
["Crew","0711","Gulf High School NJROTC","John McGuire","813-655-4894",null,null,"No",null,null,null,16,null,-16]
["Pack","0003","First United Methodist Church of La","Justin Martin","813-996-3258","NO","2017-12-19","No","2018-03-09","yes","yes",47,22,-25]
["Pack","0007","St Thomas Aquinas Catholic Church","Jeremy Davis","727-375-1086","G","2017-12-04","No","2018-02-27","yes","yes",104,70,-34]
["Pack","0008","First United Methodist Church of NP","Christopher Williams","727-807-5907","NO","2017-12-28","No","2018-02-09","yes","yes",71,41,-30]
["Pack","0033","Our Lady of the Rosary Catholic Chu","Wesley Newhall","813-476-3247","G","2017-12-22","No","2018-02-28","yes","YES",46,37,-9]
["Pack","0038","LDS - Hudson Ward - St Pete Stake","William Parker","845-537-9616",null,null,"No",null,null,null,7,null,-7]
["Pack","0040","St Marks Presbyterian Church","Timothy Faughnan","727-534-6942","NO","2017-12-28","No","2018-02-28","yes","yes",29,25,-4]
["Pack",13,"VFW Post 4412","James Carbonneau","727-815-0934","NO","2017-12-30","No","2018-02-21","yes","yes",14,18,4]
["Pack","0060","Asbury United Methodist Church","Stephen Collins","727-494-7592","NO","2017-12-08","No","2018-03-14","yes","yes",34,21,-13]
["Pack","0072","Rotary Club Of Zephyrhills","Eric Barre","813-782-1251","G","2017-11-17","No","2018-01-29","yes","yes",52,26,-26]
["Pack","0077","First Presbyterian Church of Zephyr","Seath Maslen","813-312-5209","NO","2017-12-25","No","2018-03-12","yes","yes",15,8,-7]
["Pack","0091","Shady Hills United Methodist Church","Jami Crumley","727-953-5591","G","2017-12-28","yes",null,null,"yes",30,17,-13,"need appl for Justin Milltee, Brittany Mora & Christina Neilson"]
["Pack","0140","St Vincent De Paul Catholic Church","John Storminger","727-207-8375","NO","2017-12-30","No","2018-03-27","yes","yes",51,21,-30]
["Pack","0148","Atonement Lutheran Church","Michael Taylor","813-501-8655","G","2017-12-04","No","2018-02-28","yes","yes",115,65,-50]
["Pack","0149","Rotary Club of Wesley Chapel","Scott Raymond","813-375-2261","NO","2017-12-20","No","2018-02-28","yes","yes",108,57,-51]
["Pack","0177","Trinity United Methodist Church","Jaime Pena","813-788-3906","S","2017-12-21","No","2018-01-30","yes","yes",90,56,-34]
["Pack","0206","The Church of Jesus Christ of LDS","Stephen Southwort","813-872-6799",null,null,"No",null,null,null,18,null,-18]
["Pack","0301","First Presbyterian Church","Teresa Dadez","352-467-0042",null,"2018-02-22","yes",null,null,"yes",50,32,-18,"need charter signature page "]
["Pack","0311","St Anthony of Padua Catholic Church","Kyle Christmas","352-588-3287","NO","2017-12-21","yes",null,null,"yes",30,16,-14,"need SS # for Jacquelyn Christmas and cbc"]
["Pack","0323","Concerned Parents of LOL / WC","Robert Heinzmann","540-809-6441","G","2017-12-25","yes",null,null,"yes",87,67,-20,"Need Kay Svengard appl"]
["Pack","0350","LDS Church-Dade City Ward-Tampa Sta","Lea Chandler","813-312-7069","NO","2018-01-10","No","2018-02-21","yes","yes",10,7,-3]
["Pack","0366","Rasmussen College","Michael Kerrigan","770-335-8075","G","2017-12-21","No","2018-01-29","yes","YES",133,96,-37]
["Post","0353","Dade City Police Department","Peter Emerson","352-521-1495",null,"2017-12-01","No","2018-03-14","yes","yes",9,7,-2]
["Troop","0002","Atonement Lutheran Church","Leigh Smith","813-545-5737","G","2017-12-26","No","2018-02-08","yes","YES",17,14,-3]
["Troop","0003","First United Methodist Church of La","Lee Edwards","813-760-2698","G","2017-12-24","No","2018-01-31","yes","YES",38,28,-10]
["Troop","0008","First United Methodist Church of NP","Kevin Tipton","727-944-4091","NO","2017-12-29","No","2018-02-22","yes","yes",19,17,-2]
["Troop","0024","American Legion Paradise Post 79","Christopher Feagles","727-848-6882","G","2017-12-22","No","2018-02-23","yes","yes",11,8,-3]
["Troop","0033","Our Lady of the Rosary Catholic Chu","Charles Fuhmeister","813-996-7135","G","2017-12-21","No","2018-01-29","yes","yes",57,45,-12]
["Troop","0038","LDS - Hudson Ward - St Pete Stake","Rolando Nurse","727-376-8835",null,"2018-02-03","No","2018-03-12","yes","yes",24,24,0]
["Troop","0040","St Marks Presbyterian Church","Michael Faughnan","727-815-5376","NO","2017-12-29","No","2018-03-05","yes","yes",10,7,-3]
["Troop","0060","Asbury United Methodist Church","Douglas Anderson","727-856-8723","G","2017-12-04","No","2018-03-12","yes","yes",19,14,-5]
["Troop","0072","Zephyrhills Rotary Club","Craig Boisseau","407-595-3015",null,"2017-03-12","No","2018-03-12","yes","yes",20,10,-10]
["Troop","0077","Trinity Presbyterian Church of Seve","David Davis","727-943-2068","G","2017-12-20","No","2018-01-24","yes","yes",20,18,-2]
["Troop","0086","First United Methodist Church of Hu","Russell Hagerman","727-856-9243","G","2017-12-23","No","2018-02-21","yes","yes",16,16,0]
["Troop","0091","Shady Hills United Methodist Church","Donald Eith","727-862-3639","G","2017-12-28","No","2018-03-02","yes","yes",13,11,-2]
["Troop","0149","Rotary Club of Wesley Chapel, Inc","Orlando Serrano","813-957-0442","NO","2017-12-28","No","2018-02-06","yes","yes",27,23,-4]
["Troop","0155","VFW Donald Michels Jr Post 6180","Todd Myers","727-856-2061","NO","2017-12-28","No","2018-02-08","yes","yes",18,15,-3]
["Troop","0177","St Thomas Aquinas Catholic Church","Scott Galley","727-366-2450","NO","2018-01-30","No","2018-03-07","yes","yes",30,21,-9]
["Troop","0177","Trinity United Methodist Church","Christopher Fonteyn","813-785-6048","G","2017-12-19","No","2018-02-22","yes","yes",23,17,-6]
["Troop","0206","The Church of Jesus Christ of LDS","Scott Anderson","919-559-2025",null,"2018-02-12","yes",null,null,"yes",26,35,9,"Need appl for Robert Brightman, Cade Anderson, Gus Bozeman, Josh Thornton Roman Gillrie is reg. in T350"]
["Troop","0300","Saddlebrook Preparatory School","Martin Levins","617-719-4400","G","2017-12-27","No","2018-02-22","yes","yes",8,8,0]
["Troop","0311","St Anthony of Padua Catholic Church","Christopher Davis","813-335-2608","S","2017-12-07","No","2018-01-17","yes","yes",22,20,-2]
["Troop","0350","LDS Church-Dade City Ward-Tampa Sta","Jacob Lenzi","928-228-7655","NO","2018-01-10","No","2018-02-21","yes","yes",15,6,-9]
["Troop","0375","Trilby Masonic Lodge No 141 F & AM","James Gentry","352-457-2466","NO","2017-12-29","No","2018-02-28","yes","yes",11,5,-6]
["Troop","0402","First Presbyterian Church","Wiiliam Morton","813-997-4987","NO","2017-12-12","No","2018-03-13","yes","yes",9,8,-1]
["Troop","0707","Concerned Parents of LOL / WC","Douglas Gilliland","813 995-2623","G","2017-12-26","yes",null,null,"yes",50,35,-15,"Need app for David & Shannon Barker "]
[{"$nulls":13},0]
[{"$nulls":11},{"$f":"SUM(L2:L49)","v":1674},{"$f":"SUM(M2:M49)","v":1114},{"$f":"SUM(N2:N49)","v":-560}]

{"sheet":"LakeRegion","index":2,"n_rows":59,"n_cols":7,"rows_kept":59,"cut":false,"hidden":false,"merged":[]}
["unit","number","organization_name","Contact Name","Contact Phone","Year end number","Unit Goal"]
["Crew","0000","Yeti Benevolent Society","Theron Goss","407-312-9703",2,400]
["Crew","0538","International Market World","Paul Mastrangeli","863-307-8587",3,600]
["Crew","0888","American Legion Post 08","Bernard Carlin","843-437-5776",2,400]
["Pack","0115","Rotary Club of Auburndale","Valerie Corwith","863-585-1634",39,7800]
["Pack","0121","First Presbyterian Church of Winter","Matthew Dunbar","863-205-2207",23,4600]
["Pack","0123","Beymer Memorial United Methodist Ch","Michael Keyes","941-722-5587",33,6600]
["Pack","0144","LDS Church-Lake Wales Ward-Lakeland","Linda Mathinos","863-692-9003",4,800]
["Pack","0156","Union Congregational Church","Deborah Barber","863-453-4825",24,4800]
["Pack","0169","First United Methodist Church of Fr","Dana Gonzalez","863-443-4550",31,6200]
["Pack","0200","First Missionary Baptist Church","Benjamin Jones","386 299-3345",9,1800]
["Pack","0482","American Legion Post 25","Amanda Diggs","863-991-3451",53,10600]
["Pack","0501","LDS Church-Citrus Ridge Ward-Lakela","Vance Green","407-592-1000",null,0]
["Pack","0505","St Josephs Catholic Church","Robert Eden","863-602-0924",65,13000]
["Pack","0514","Lighthouse Homeschoolers Inc","Matthew Hickmot","863-86-6529",8,1600]
["Pack","0515","Holy Cross Episcopal Church","David Hays","863-206-9700",76,15200]
["Pack","0526","Veterans of Foreign Wars","Jonathan Blackburn","863-289-6879",51,10200]
["Pack","0528","UFCW Local 1625","Luke Land","lukemichaelland2004@yahoo.com",100,20000]
["Pack","0535","First United Methodist Church of Ha","Edward Humm","863-557-6100",4,800]
["Pack","0538","International Market World","Lisa Dwulat","863-280-5670",18,3600]
["Pack","0541","First Presbyterian Church of Haines","Merlin Wertz","863-899-4422",67,13400]
["Pack","0557","LDS Church-Winter Haven Ward-Lakela","Curtis Tilley","863-280-5765",3,600]
["Pack","0561","Christ Community Church","Monte Holm","928-567-5184",38,7600]
["Pack","0565","Hope Presbyterian Church","Eric Moore","863-651-9200",15,3000]
["Pack","0570","Grove Manor-Lake Wales Housing Auth","Michael Oneal","863-288-4343",25,5000]
["Pack","0582","United Food and Commercial Workers","Roscoe Edney","407-252-2459",6,1200]
["Pack","0808","Cochran Brothers Roofing Inc","Laura Ammann","863-385-3431",14,2800]
["Pack","0813","Select Citizens Offer Ultimate Troo","Eddie Newman","863-773-6845",6,1200]
["Pack","0815","Mikes Lawn Care","Jason Walker","863-773-3212",5,1000]
["Pack","0846","First UMC of Sebring","James Polatty","863-386-4927",52,10400]
["Pack","0875","Bowling Green Methodist Church","Juan Martinez","863-245-1183",19,3800]
["Pack","1401","JHWES Enviromental Studies Program","Bryan Craft","863-409-9828",32,6400]
["Ship","0888","American Legion Post 08","Bernard Carlin","843-437-5776",8,1600]
["Troop","0115","Rotary Club of Auburndale","Graig Gaule","863-956-1294",14,2800]
["Troop","0121","First Presbyterian Church of Winter","Matthew Dunbar","863-205-2207",5,1000]
["Troop","0123","Beymer Memorial United Methodist Ch","Timothy Longstreet","863-618-6023",24,4800]
["Troop","0144","LDS Church-Lake Wales Ward-Lakeland","Russell Weaver","863-676-0370",13,2600]
["Troop","0156","Union Congregational Church","Kevin Seymor","863-452-5261",12,2400]
["Troop","0200","First Missionary Baptist Church","Benjamin Jones","863-299-3345",10,2000]
["Troop","0482","American Legion Post 25","Michael Medley","863-441-0327",8,1600]
["Troop","0501","LDS Church-Citrus Ridge Ward-Lakela","Michael Schmitt","407-301-5401",19,3800]
["Troop","0505","St Josephs Catholic Church","Brian Hartpence","863-967-8062",23,4600]
["Troop","0514","Lighthouse Homeschoolers Inc","Rhone Hickmott","863-816-6529",13,2600]
["Troop","0515","Holy Cross Episcopal Church","David Hays","863-206-9700",43,8600]
["Troop","0526","VFW Post 4289 Winter Haven","Norma Gardner","863-324-6461",15,3000]
["Troop","0528","UFCW Local 1625","Brenda Brwoning","863-838-2069",21,4200]
["Troop","0535","First United Methodist Church of Ha","Brian Rogers","407-595-2872",6,1200]
["Troop","0538","International Market World","Michale Weiner","863-934-3432",3,600]
["Troop","0541","First Presbyterian Church of Haines","Merlin Wertz","863-899-4422",13,2600]
["Troop","0557","LDS Church-Winter Haven Ward-Lakela","Kent Foster","863-268-4121",13,2600]
["Troop","0561","Christ Community Church","Scott Wiltse","863-229-8044",8,1600]
["Troop","0565","Hope Presbyterian Church","Mark Soule","863-307-4458",32,6400]
["Troop","0570","Grove Manor-Lake Wales Housing Auth","Robert Johnson","863-224-6022",10,2000]
["Troop","0593","Knights Of Columbus #5643","Christopher Lutton","863-679-2900",9,1800]
["Troop","0808","Cochran Brothers Roofing Inc","Christopher Ritenour","863-386-2122",9,1800]
["Troop","0813","Select Citizens Offer Ultimate Trp","John Juddah","863-773-3727",7,1400]
["Troop","0815","Mikes Lawn Care","Adam Guerrero","863-245-7676",5,1000]
["Troop","0827","LDS Church- Sebring Ward-Bradenton","Ronald Hill","863-402-1511",12,2400]
["Troop","0846","First UMC of Sebring","Gary King","863-314-4489",20,4000]

{"sheet":"Thunderbird","index":3,"n_rows":26,"n_cols":7,"rows_kept":26,"cut":false,"hidden":false,"merged":[]}
["unit","number","organization_name","Contact Name","Contact Phone","Year end number","Unit Goal"]
["Pack","0104","First Presbyterian Church of Lakela","Brian Knowles","863-221-2062",45,9000]
["Pack","0106","St. Stephens Church","Kevin Blydenburgh","863-648-4023",96,19200]
["Pack","0147","First Presbyterian Church","Jason Sparkman","863-899-0001",30,6000]
["Pack","0711","Lake Gibson United Methodist Church","Russell Minx","863-688-7897",68,13600]
["Pack","0713","Knights Of Columbus","Michael Salazar","863-409-1476",41,8200]
["Pack","0722","The Revolution Church","Henry McCracken","863-529-6791",29,5800]
["Pack","0725","Reformation Lutheran Church","Cedric Turgeon","863-698-4580",15,3000]
["Pack","0740","Shepherd Road Presbyterian Church","Michael Kindle","863-899-1849",40,8000]
["Pack","0760","First United Methodist Church","Jason Wikman","jasonwikman@yahoo.com",47,9400]
["Pack","0765","LDS Church-Gibsonia Ward-Lakeland S","Dean Allen Grable","(863) 815-2314",12,2400]
["Pack","0767","LDS Church-Highlands Ward-Lakeland","Brenda Serpas","b.serpas@verizon.net",12,2400]
["Post","0001","Polk County Sheriffs Office","John Chris Marion","(863) 298-6200",51,10200]
["Ship","0106","St Stephens Esp","Mark Edward Dye","(863) 701-6431",9,1800]
["Troop","0104","First Presbyterian Church of Lakeland","Patrick Kelly","863-646-5142",29,5800]
["Troop","0106","St. Stephens Church","David Combee","863-682-1639",31,6200]
["Troop","0147","First Presbyterian Church of Bartow","Sean Karshner","910-818-3929",10,2000]
["Troop","0445","Mulberry United Methodist Church","David Vanderwier","863-644-8292",5,1000]
["Troop","0711","Lake Gibson United Methodist Church","James David Bibby","(863) 858-0368",15,3000]
["Troop","0712","LDS Church-Lakeland Ward-Lakeland S","William Coleman","863 644-0320",4,800]
["Troop","0713","Knights Of Columbus #10169","David Skiles","863 398-4327",46,9200]
["Troop","0722","The Revolution Church of Lakeland","Henry McCracken","863-529-6791",6,1200]
["Troop","0740","Shepherd Road Presbyterian Church","Guy Yodock","863-614-1166",5,1000]
["Troop","0760","First UMC of Lakeland","John Harold Kiefer","(863) 944-6987",7,1400]
["Troop","0765","LDS Church-Gibsonia Ward-Lakeland S","Homero Valenzuela, Jr","(863) 430-7739",9,1800]
["Troop","0767","LDS Church-Highlands Ward-Lakeland","Nicky  Adams","(863) 519-5324",15,3000]

{"sheet":"Timucua","index":4,"n_rows":74,"n_cols":7,"rows_kept":74,"cut":false,"hidden":false,"merged":[]}
["unit","number","organization_name","Contact Name","Contact Phone","Year end number","Unit Goal"]
["Crew","0265","LDS Church-Valrico Ward-Brandon Sta","Robert Todd Fountain","bballlaces@gmail.com",1,200]
["Crew","0266","LDS Church-Riverview Ward-Brandon S","Christopher Bingham","(813) 569-2592",0,0]
["Crew","0610","St Stephen Catholic Church","Greg Lewis Moore, Jr","(813) 679-9729",5,1000]
["Crew","0797","First United Methodist Church of Se","Karen Leslie Koseck","(813) 662-3311",6,1200]
["Crew","1986","Brandon 86 Rotary Club","Latour Rey Lafferty","(813) 689-2243",7,1400]
["Pack","0005","Norman McLeod American Legion Post","Sabrina Marie Jones","(262) 244-7303",13,2600]
["Pack","0011","St Andrews United Methodist Church","Jamie Racine","813-545-9961",28,5600]
["Pack","0039","Rotary Club of Riverview","Nicholas Grohs","(813) 205-3454",29,5800]
["Pack","0061","Brandon 86 Rotary Club","Eric Christopher Brown","(321) 501-7266",70,14000]
["Pack","0079","Immanuel Lutheran Church","Michael Joseph Bradford","(813) 661-8270",59,11800]
["Pack","0083","Riverview United Methodist Church","John Carl Adair","(813) 516-2923",45,9000]
["Pack","0089","Nativity Catholic Church","John Wayne Adams","(813) 626-8227",48,9600]
["Pack","0092","Bay Life Church Of Brandon Inc","Bobby Dean Johnson, III","(813) 641-1202",35,7000]
["Pack","0110","Apostles Lutheran Church","Jason E Adams","(813) 651-5861",52,10400]
["Pack","0205","VFW Post 8108","James Randall Grooms, Jr","(813) 716-2584",31,6200]
["Pack","0266","LDS Church-Providence Ward-Brandon Sta","Robin Pope","813-681-4489",41,8200]
["Pack",268,"LDS Church-Riverview Ward-Brandon S","Bradley Wilde","813-671-7857",9,1800]
["Pack","0601","LDS Church-Apollo Beach Ward-Brando","James Bruce Barlow, Sr","(813) 360-0427",6,1200]
["Pack","0603","Boyette Springs Elementary School P","Roger Dale Ferrell","(813) 684-3908",150,30000]
["Pack","0604","Lithia Springs Elementary School PT","Thomas Bristow","(813) 654-0121",80,16000]
["Pack","0606","American Legion Post 148","Brent Gagnard","(301) 863-8412",0,0]
["Pack","0607","South Shore United Methodist Church","Alias Dylan Mix","(813) 409-2547",33,6600]
["Pack","0609","South Shore United Methodist Church","Patrick Ryan Hedgecoth","patrick.hedgecoth@gmail.com",54,10800]
["Pack","0610","St Stephen Catholic Church","David  Herberger","(830) 822-7753",52,10400]
["Pack","0632","Fishhawk Fellowship Church","James Fieo","813-849-3470",111,22200]
["Pack","0637","Lamb of God Lutheran Church","Justin Butler","jbutler62@icloud.com",28,5600]
["Pack","0690","Citizens For Scouting","Robert Joseph Moore, Jr","(813) 837-1896",65,13000]
["Pack","0700","LDS Church- Plant City Ward-Brandon","Davitta George Rowland","(813) 967-5206",1,200]
["Pack","0734","Cork United Methodist Church","James Alan Keifer","(813) 659-2874",82,16400]
["Pack","0744","First United Methodist Church of Pl","John David Mitchell","(813) 215-4014",46,9200]
["Pack","0776","Sydney Baptist Church","Billy Ray McCracken","(813) 655-5095",40,8000]
["Pack","0797","First United Methodist Church of Se","Daniel Martin Allen","(813) 600-7540",5,1000]
["Pack","0826","Lamb of God Lutheran Church","Donald Herbert Dewey","(813) 681-5736",32,6400]
["Pack","0909","Sun City Center United Methodist Ch","Megan L Jones-Willis","(813) 236-9440",37,7400]
["Pack","1481","The American Legion Alafia Post 148","Richard Lee Hewett","813) 677-4354",57,11400]
["Pack","2140","St Anne Catholic Church","Jonathan Shuman","(813) 956-6189",35,7000]
["Pack","3891","American Legion Post 389","Robert Lee Lindsey, III","(813) 690-8482",25,5000]
["Ship","0185","Tampa Sailing Squadron","Donald F Stamour","(813) 967-7718",18,3600]
["Team","0265","LDS Church-Valrico Ward-Brandon Sta","Samuel Chapman","(727) 637-4253",0,0]
["Team","0266","LDS Church-Riverview Ward-Brandon S","James Allen Bartlett","(813) 447-7594",1,200]
["Troop","0005","Norman McLeod American Legion Post","Michael Dean Wanner","(813) 754-6316",11,2200]
["Troop","0011","St Andrews United Methodist Church","Michael Poirson","(813) 685-9760",53,10600]
["Troop","0061","Presbyterian Church Of Bloomingdale","Michael William Beck","813) 662-7376",60,12000]
["Troop","0078(678)","St Francis Of Assisi Catholic Churc","Thaddeus Anthony Domey, Jr","(813) 685-8242",10,2000]
["Troop","0079","Immanuel Lutheran Church","Joseph John Pusateri","(813) 689-1543",49,9800]
["Troop","0083","Riverview United Methodist Church","Todd Alan Parry","(813) 838-1056",14,2800]
["Troop","0089","Church Of The Nativity Mens Club","Casimir Patrick Tyska","(813) 689-6918",38,7600]
["Troop","0099","Limona Village Chapel United Method","Dennis  Godber, Jr","drebdog@yahoo.com",10,2000]
["Troop","0101","Kings Avenue Baptist Church Inc","Charles Joe Palmer","(813) 685-5232",19,3800]
["Troop","0109","Holy Innocents Episcopal Church","Anthony Joseph Marro","(813) 634-5483",32,6400]
["Troop","0110","Apostles Lutheran Church","James Brian Bard","813) 690-0268",24,4800]
["Troop","0111","Hillsborough River Preservation, In","Walter Lee Williams","(813) 685-6444",10,2000]
["Troop","0204","United Methodist Church","Shawn Dewayne Lindsay","(813) 765-8393",12,2400]
["Troop","0264","LDS Church-Brandon Ward-Brandon Sta","Bradley Keith Jergensen","(951) 294-2533",11,2200]
["Troop","0265","LDS Church-Valrico Ward-Brandon Sta","Bradley Keith Jergensen","951) 294-2533",24,4800]
["Troop","0266","LDS Church-Riverview Ward-Brandon S","Christian Costlow","(813) 541-7905",15,3000]
["Troop","0267","LDS Church-Brandon Ward-Brandon Sta","Kenneth Robert Staver","(813) 571-9320",18,3600]
["Troop ",268,"LDS Church-Riverview Ward-Brandon S","Mark Thompson","813-388-0209",17,3400]
["Troop","0601","LDS Church-Apollo Beach Ward-Brando","Steven Ronald Lambson","(281) 723-7642",6,1200]
["Troop","0606","South Shore United Methodist Church","Ricardo Figueroa","(813) 917-0773",25,5000]
["Troop","0610","St Stephen Catholic Church","Edward John Amato","910) 868-3166",61,12200]
["Troop","0627","Elks Lodge #2383 of Brandon","Alec Robert Brophy","(813) 655-5177",14,2800]
["Troop","0632","Fishhawk Fellowship Church","Michael Glenn Hodges, MD","(813) 653-2302",78,15600]
["Troop","0661","Matthew A Knight Foundation","Robert Joseph Leonard","(813) 260-3653",22,4400]
["Troop","0665","Oakwood Baptist Church","Thomas Bristow","(813) 654-0121",28,5600]
["Troop","0686","Brandon Christian Fellowship Inc","Geoffrey Blair Lindsay","(813) 363-7365",31,6200]
["Troop","0700","LDS Church- Plant City Ward-Brandon","Curtis Wayne Stansel","813) 764-0127",7,1400]
["Troop","0734","Cork United Methodist Church","John Alvin Bazley, II","(813) 707-1730",26,5200]
["Troop","0744","First United Methodist Church of Pl","Anthony Benavidez","(813) 754-1320",10,2000]
["Troop","0797","First United Methodist Church of Se","Daniel Martin Allen","(813) 600-7540",28,5600]
["Troop","1482","The American Legion Alafia Post 148","Richard Lee Hewett","(813) 677-4354",14,2800]
["Troop","1986","Brandon 86 Rotary Club","Latour Rey Lafferty","(813) 689-2243",3,600]
["Troop","2140","St Anne Catholic Church","Christopher John Paskert, II","(813) 451-9924",5,1000]

{"sheet":"Withlacoochee","index":5,"n_rows":41,"n_cols":7,"rows_kept":41,"cut":false,"hidden":false,"merged":[]}
["unit","number","organization_name"," ","Contact Phone","Year end number","Unit Goal"]
["Crew","0406","First Lutheran Church of Ridge Mano","Kellie McMillan","352 650-0621",5,1000]
["Pack","0071","First United Methodist Church of Br","Wayne Colombo","(352) 544-8392",20,4000]
["Pack","0302","First Presbyterian Church of Invern","Jarrett Michael Love","(352) 697-1227",18,3600]
["Pack","0303","Knights of Columbus St Jude Council","Joseph Lawrence","gatorjoe9106@yahoo.com",62,12400]
["Pack","0306","Wildwood United Methodist Church","Clifford John Litka","(540) 831-9489",18,3600]
["Pack","0352","LDS Church-Lecanto Ward-Leesburg St","Guy Randolph Madden","941) 258-2452",3,600]
["Pack","0370","American Legion Post 155","Derek Paul Johnson","(352) 228-7290",19,3800]
["Pack","0406","Ridge Manor United Methodist Church","Patrick Steward","(352) 606-8005",15,3000]
["Pack","0415","Crystal River United Methodist Chur","Josheau Ray Fairchild","(352) 601-0538",17,3400]
["Pack","0427","St John Paul II Catholic School","Frank Dipiazza","(352) 860-0020",8,1600]
["Pack","0439","First United Methodist Church of Bu","Tommy Dwayne Story","352) 793-2018",43,8600]
["Pack","0443","VFW Post 10209","Jason R Deso","352) 754-6830",56,11200]
["Pack","0446","Mariner Unted Methodist Church","Thomas Edmund Alajko, Jr","(352) 263-4837",28,5600]
["Pack","0462","Hope Evangelical Lutheran Church","Rebecca Ann Thompson","(352) 465-5328",62,12400]
["Pack","0465","Scout Parents of Spring Hill","Jose Antonio Rosario","(352) 684-9698",36,7200]
["Pack","0796","LDS Church-Brooksville Ward-Tampa S","Robin L McAndrew","(352) 583-0519",15,3000]
["Pack","0975","Good Shepherd Lutheran Church","Natasha Lea Jane Harris","(352) 476-6204",47,9400]
["Pack","1457","Pleasant Grove Elementary School PT","Erika Krystal Luke","(352) 341-1171",30,6000]
["Pack","2693","West Citrus Elks Lodge 2693","Michael Shawn Haddigan","(352) 503-2645",27,5400]
["Pack","4215","Christian Church in the Wildwood","Ryan Reed","828-772-0321",18,3600]
["Post","0409","Hernando County Sheriffs Office","Jason Deso","352 754-6830",38,7600]
["Troop","0071","First United Methodist Church of Br","Robert Lewis Wilson, Jr","727) 856-3352",20,4000]
["Troop","0302","First Presbyterian Church of Invern","Steven Epple","352-212-1895",15,3000]
["Troop","0303","VFW David G Snyder Post8681","Jeffery Tobey","352-428-6139",12,2400]
["Troop","0352","LDS Church-Lecanto Ward-Leesburg St","Earl Waters","352 302-0359",10,2000]
["Troop","0370","Homossasa Scout Hut Inc","John Coble","352-212-5930",4,800]
["Troop","0406","Ridge Manor United Methodist Church","Trent Smothers","(352) 540-9614",10,2000]
["Troop","0415","Crystal River United Methodist Chur","Cori Dale Boney","(352) 302-3116",8,1600]
["Troop","0433","St Andrews Episcopal Church","Michael Faustini","352 573-8422",12,2400]
["Troop","0439","First United Methodist Church of Bu","Alan James Ramirez","(352) 444-2311",21,4200]
["Troop","0442","Fellowship Community Church","Christopher Anthony Carreiro","(352) 600-9758",25,5000]
["Troop","0443","VFW Post 10209","Michael Pecora","352 279-9887",24,4800]
["Troop","0446","St Frances Cabrini Catholic Church","Stephen C Denney","(727) 856-6378",16,3200]
["Troop","0452","Beverly Hills Community Church","Dennis Vaughn Johnson, II","(352) 527-8957",31,6200]
["Troop","0457","Rotary Club of Inverness Inc","John Murphy, Jr","(352) 726-6811",8,1600]
["Troop","0462","Hope Evangelical Lutheran Church","John Murphy","352 726-6811",13,2600]
["Troop","0693","Chassahowitzka Community Associatio","Teresa Renee Myers","352) 765-4268",5,1000]
["Troop","0796","LDS Church-Brooksville Ward-Tampa S","Jimmy M Olesko","(352) 422-8864",23,4600]
["Troop","1457","Tim Herndon Plumbing","Randall Luke","352-341-1171",18,3600]
["Troop","7122","VFW Post 7122","Jon Young","352-726-2193",7,1400]

{"sheet":"FT. Brooke","index":6,"n_rows":117,"n_cols":7,"rows_kept":117,"cut":false,"hidden":false,"merged":[]}
["unit","number","organization_name","Contact Name","Contact Phone","Year end number","Unit Goal"]
["Crew","0012","Troop 12 Inc","Jeffrey Potvin","813-948-0031",2,400]
["Crew","0028","Gaither High School NJROTC","Loney Cason","813-383-3473",66,13200]
["Crew","0046","First Baptist Church of Citrus Park","George Scott Doster","(813) 928-4690",4,800]
["Crew","0127","St James United Methodist Church","Mary Spence","813-973-1923",6,1200]
["Crew","0187","Freedom High School NJROTC","Eric Bowman","(813) 938-3262",32,6400]
["Crew","0194","Wharton High School NJROTC","Michael Beale","813 973 9089",null,0]
["Crew","0198","LDS Church-Tampa 2nd Ward-Tampa Sta","Kenneth French","813-395-4532",1,200]
["Crew","0212","Tims Memorial Presbyterian Church","Mark Rose","(813) 948-6789",6,1200]
["Crew","0221","Hat Trick Theatre Productions Inc","Nathaniel Bailey","813-494-3499",4,800]
["Crew","0339","Christ Cumberland Presbyterian Chur","Fletcher Benson Porter, Jr","(813) 926-6163",7,1400]
["Crew","0803","The Oaks of Riverview - THA","Daniel ONeal Stewart, Sr","(813) 223-9894",3,600]
["Pack","0004","Palma Ceia Presbyterian Church","Christian Givens","813-785-1777",88,17600]
["Pack","0009","American Legion Post 147","Jason Goulas","813-803-0313",31,6200]
["Pack","0010","LDS Church-Carrollwood 2nd Ward-Tam","Douglas Victor Sutton","(425) 922-1030",9,1800]
["Pack","0012","J F Swartsel Lodge #251 F&AM","Ingrid Lynn Wagner","(813) 205-4425",61,12200]
["Pack","0016","Carrollwood Seventh Day Adventist C","Randall Robert Carswell, Jr","(813) 407-9006",12,2400]
["Pack","0017","All Nations Outreach Church","Richard Tyrone Nelson","813) 399-8533",5,1000]
["Pack","0018","Messiah Lutheran Church","Joseph Bartolotta","813 269-4005",46,9200]
["Pack","0019","PTSA Roland Park Magnet School","Andrew Bennett","813-217-2539",38,7600]
["Pack","0020","Lutheran Church Of Our Saviour","Stephanie Byrne","727-505-7861",53,10600]
["Pack","0021","St Marys Catholic Church","Ralph Perez","(813) 962-1088",44,8800]
["Pack","0022","Hyde Park United Methodist Church","Andrew Eckhoff","813-250-1700",72,14400]
["Pack","0023","St Johns Parish Day School Inc","Hayes Peterson Greep, Sr","(813) 205-8397",48,9600]
["Pack","0025","Holy Trinity Lutheran Church","John William Sanders, Jr","(813) 399-1764",106,21200]
["Pack","0037","Learning Gate Community School","Katie Sheffield (CC)","kesheffield@verizon.net",36,7200]
["Pack","0038","Mary Bryant Elementary School PTA","Anthony Battaglia","(727) 687-4270",71,14200]
["Pack","0045","Christ The King Catholic Church","Duncan Belser","813-777-2167",80,16000]
["Pack","0046","Wellspring United Methodist Church","Franklin Vanloon","813-792-1497",141,28200]
["Pack","0052","Oak Grove Elementary School PTA","Joseph Chappel","813-480-1292",38,7600]
["Pack","0053","Dale Mabry Elementary School PTA","Lucas Miller","813-731-5432",88,17600]
["Pack","0055","LDS Church-Odessa Branch-Tampa Stak","Kimberly Cook","813-920-0222",11,2200]
["Pack","0056","Family and Friends of Cub Scouting","Timothy Zach","813-956-5539",77,15400]
["Pack","0057","Seminole Heights United Methodist C","Tanisha Coney","813-526-3353",24,4800]
["Pack","0064","First Baptist Church Of College Hil","Christine M Cheshier","Circe7609@gmail.com",56,11200]
["Pack","0081","Christ our Redeemer Lutheran Church","James Brockman","813-629-1522",5,1000]
["Pack","0082","St. Josephs Catholic School","Frankie Collazo","(813) 509-2434",19,3800]
["Pack","0084","Hillsborough United Methodist Churc","Christopher Perry","813-245-1204",54,10800]
["Pack","0108","Pride Elementary School PTA","Ryan Douglas Garl","(813) 545-9114",71,14200]
["Pack","0140","Oak Grove United Methodist Church","Joseph Chappel","813-480-1292",36,7200]
["Pack","0142","St James United Methodist Church","Matthew M Holland","(813) 435-6788",77,15400]
["Pack","0180","St James United Methodist Church","David Switzer","813-910-9199",40,8000]
["Pack","0188","Temple Terrace Presbyterian","Thomas Censullo","813-980-6101",53,10600]
["Pack","0190","LDS Church-Temple Terrace Ward-Bran","Cleopatra E S Doyle","(813) 943-5676",2,400]
["Pack","0198","LDS Church-Tampa 2nd Ward-Tampa Sta","Robert White","813-786-0615",5,1000]
["Pack","0199","LDS Church-Tampa 1st Ward-Tampa Sta","James Tschudy","314-255-8821",12,2400]
["Pack","0202","Forest Hills Presbyterian Church","Alfred William Baumann","(813) 679-2840",51,10200]
["Pack","0212","Tims Memorial Presbyterian Church","Sean Smith","813-909-9608",48,9600]
["Pack","0217","Lake Magdalene United Methodist Chu","Daniel Mitchell","(813) 766-6106",32,6400]
["Pack","0246","Woodbridge Elementary School PTA","John Stiber","813-889-7698",10,2000]
["Pack","0280","Bay Chapel","Jaime Sitmer","813-929-3842",36,7200]
["Pack","0310","Academy Of The Holy Names","Martin Hernandez","813-784-2749",22,4400]
["Pack","0312","Peninsular Christian Church","Angela Gonzales","(813) 516-9573",65,13000]
["Pack","0315","Wesley Memorial United Methodist Ch","Jeremy Haefeker","813-480-1419",99,19800]
["Pack","0329","St Lawrence Catholic Church","Frederick Vereb","813-494-4192",53,10600]
["Pack","0337","LDS Church-Tampa 4th Ward-Tampa Sta","Daniel Melazzo","(801) 205-3275",2,400]
["Pack","0339","Christ Cumberland Presbyterian Chur","Brian David Maddux","(904) 614-9217",33,6600]
["Pack","0354","LDS Church-New Tampa Ward-Brandon S","Derrek White","(435) 253-0614",5,1000]
["Pack","0360","St James United Methodist Church","sc","813-994-1942",41,8200]
["Pack","0648","Keystone United Methodist Church","Andrew Daniel Moran","(813) 960-7250",88,17600]
["Pack","0654","St John Progressive Baptist Church","Reginald Bellamy","813-989-1854",5,1000]
["Pack","0681","West Tampa Elementary School PTA","Frankie Collazo","813) 509-2434",12,2400]
["Pack","0801","St James United Methodist Church","Kenneth Lewis","813-500-1828",73,14600]
["Pack","0803","The Treo at Encore of the THA","Daniel Stewart","813) 610-4159",13,2600]
["Pack","0804","Tampa Housing and Tampa Police Dept","Daniel Stewart","813) 610-4159",37,7400]
["Pack","0805","North Boulevard Homes","Daniel Stewart","813) 610-4159",38,7600]
["Pack","0806","C Blyth Andrews Housing","Daniel Stewart","813) 610-4159",18,3600]
["Pack","0807","Tampa Housing Authority","Daniel Stewart","813) 610-4159",13,2600]
["Post","0238","Hillsborough County Sheriffs Office","Paul Alessandri","813-247-8115",31,6200]
["Post","0275","Tampa Police Department","Joseph Duran","813 493-1302",33,6600]
["Post","0280","University of South Florida School","Shirley Benita Smith","(617) 970-3784",9,1800]
["Post/Club","0290","The Centre 4 Girls","Walter Oscar Jennings","(813) 915-2973",18,3600]
["Post/Club","0291","The Oaks of Riverview - THA","Daniel ONeal Stewart, Sr","(813) 223-9894",25,5000]
["Post","1801","Customs and Border Protection","Yaritsa Santiago","813-770-9274",24,4800]
["Post/Club","1952","Sulphur Springs K-8 Community School","Reginald Kurt Mathis","(813) 975-7305",77,15400]
["Team","0010","LDS Church-Carrollwood 2nd Ward-Tam","Jayesh Kishore Patel","813) 956-9551",2,400]
["Team","0198","LDS Church-Tampa 2nd Ward-Tampa Sta","David Nielsen","813) 203-1312",0,0]
["Troop","0004","Palma Ceia Presbyterian Church","Robert Paul Kelly","(813) 805-2626",95,19000]
["Troop","0009","St Marks Episcopal Church","Robert Joseph Phifer","(813) 926-9886",18,3600]
["Troop","0010","LDS Church-Carrollwood 2nd Ward-Tam","Adam Dennis","813-932-3910",20,4000]
["Troop","0012","Troop 12 Inc","Paul Gregory Evans","(813) 968-3286",49,9800]
["Troop","0016","Carrollwood Seventh Day Adventist C","Gladys Rodriguez","(813) 885-5317",18,3600]
["Troop","0018","Messiah Lutheran Church","Jeffrey Bohren","813-792-1797",36,7200]
["Troop","0021","St Marys Catholic Church","James Raymond Astell","(813) 421-5292",20,4000]
["Troop","0022","Hyde Park United Methodist Church","Steven Lehner","813-215-2403",85,17000]
["Troop","0045","Christ The King Catholic Church","Daniel Weldon","813-966-1245",32,6400]
["Troop","0046","First Baptist Church of Citrus Park","David E Smith","(813) 792-8062",120,24000]
["Troop","0047","For the Kids Foundation of Tampa Ba","Jerome Burnside","(813) 299-6557",10,2000]
["Troop","0053","Palma Ceia United Methodist Church","Halsey Dickinson Keats","(813) 837-1536",49,9800]
["Troop","0056","VFW 10140","Clay Pettit","417-380-4689",25,5000]
["Troop","0057","Seminole Heights United Methodist C","Albert Williams","813 231-7164",15,3000]
["Troop","0064","First Baptist Church Of College Hil","Sharon Jennice Canty","(813) 662-2651",17,3400]
["Troop","0068","Keystone United Methodist Church","Juan E Hurtado","(813) 969-2043",57,11400]
["Troop","0120","St Catherine of Alexandria Episcopal","Eric Anthony Morris","(813) 988-3921",25,5000]
["Troop","0142","St James United Methodist Church","Michael Ebert","813-907-2197",107,21400]
["Troop","0148","St Mark The Evangelist Catholic Chu","Clyde Thompson","813-789-4964",31,6200]
["Troop","0180","Youth Leadership Development Counci","Thomas Weiss","813-294-5805",33,6600]
["Troop","0188","Temple Terrace United Methodist Chu","Samuel Ochs","813-956-1395",12,2400]
["Troop","0190","LDS Church-Temple Terrace Ward-Bran","Frank Taylor","813-433-4051",17,3400]
["Troop","0198","LDS Church-Tampa 2nd Ward-Tampa Sta","Christopher Frederick","(813) 579-7207",16,3200]
["Troop","0199","LDS Church-Tampa 1st Ward-Tampa Sta","David Haws","304-669-3222",18,3600]
["Troop","0212","Tims Memorial Presbyterian Church","Mark Rose","(813) 948-6789",32,6400]
["Troop","0215","Wellspring Methodist Church","William Carey","813 885-7944",13,2600]
["Troop","0217","Lake Magdalene United Methodist Chu","Jefferson Russell","813-969-2210",26,5200]
["Troop","0219","Loyal Order Of Moose Lodge 912","Angela DiBlasi","813 949-3224",3,600]
["Troop","0222","Manhattan Avenue United Methodist C","Shawn Brown","813 254-1486",21,4200]
["Troop","0246","Town N Country Memorial American Le","Mark Wilson","813-220-6270",10,2000]
["Troop","0304","First Reformed Church Of Tampa","Alfredo Vazquez","813-351-9291",6,1200]
["Troop","0315","Wesley Memorial United Methodist Ch","Frank Leto","813 842-4494",20,4000]
["Troop","0329","St Lawrence Catholic Church","Thomas Chadwick","813-898-8817",22,4400]
["Troop","0337","LDS Church-Tampa 4th Ward-Tampa Sta","Ben Stuart Johnson","(727) 637-4594",14,2800]
["Troop","0339","Christ Cumberland Presbyterian Chur","Matthew Cordani","727-238-9759",54,10800]
["Troop","0654","St John Progressive Baptist Church","Reginald Bellamy","813-989-1854",9,1800]
["Troop","0804","Robles Park Community Youth Corp","Daniel ONeal Stewart, Sr","(813) 223-9894",27,5400]
["Troop","0805","North Boulevard Homes","Daniel Stewart","813- 610-4159",11,2200]
["Troop","0806","C Blyth Andrews Housing","Daniel Stewart","(813- 610-4159",10,2000]
["Troop","0807","Tampa Housing Authority","Daniel Stewart","(813) 610-4159",6,1200]

{"sheet":"Skyway","index":7,"n_rows":46,"n_cols":7,"rows_kept":46,"cut":false,"hidden":false,"merged":[]}
["unit","number","organization_name","Contact Name","Contact Phone","Year end number","Unit Goal"]
["Crew","0042","WJS Adventures, Inc","Wendy Hampton","(727) 512-9747",5,1000]
["Crew","0210","Canterbury School of Florida/Couste","Jenna Meredith LoDico","(727) 744-1460",10,2000]
["Crew","0219","St Raphaels Roman Catholic Church","Louis Evans McBride","(727) 525-0187",7,1400]
["Crew","0262","Hope Lutheran Church","John Charles Tenney","(727) 522-4417",8,1600]
["Crew","0396","Marine Corp League Detachment 57","Melody Lynn Michaels","(727) 831-7564",10,2000]
["Pack","0188","Nitram Lodge #188 F&AM","Courtney Seth Allen","(201) 303-2365",66,13200]
["Pack","0209","St Paul's Catholic Church","Creighton P Shafer","(727)520-7664",43,8600]
["Pack","0219","St Raphaels Roman Catholic Church","Bradley Michael Gatie","(727) 871-6007",20,4000]
["Pack","0229","Baypoint YMCA","Sharon Anne Smith","ssmith@stpeteymca.org",39,7800]
["Pack","0236","First United Methodist Church","Robert Eggimann","(727) 550-9199",22,4400]
["Pack","0261","Riviera United Methodist Church","Todd Patrick Kennedy","(727) 798-7983",30,6000]
["Pack","0263","Holy Family Catholic Church","Robert Duane Schreiber, Jr","(813) 451-3060",26,5200]
["Pack","0280","Lutheran Church Of The Cross","Sylvan Hart MacKaness","mackaness@gmail.com",30,6000]
["Pack","0285","Palm Lake Christian Church","Richard Harvey Chapman","(727) 278-9251",48,9600]
["Pack","0291","YMCA-Campbell Park of Greater St Pe","Judy Royal-Robinson",null,null,0]
["Pack","0295","New Faith Free Methodist Church","Gwendolyn Joyce Glenn","(727) 864-3602",26,5200]
["Pack","0301","Pasadena Presbyterian Church","Matthew C Coe","727) 768-5875",23,4600]
["Pack","0303","Shorecrest Preparatory School","Brian Talbott O'Neill","(727) 823-7525",16,3200]
["Pack","0305","Wesley Memorial United Methodist Ch","Vanessa Marie Hatcherian","(727) 303-5624",25,5000]
["Pack","0306","YMCA - Woodlawn Elementary","LaRhonda Brooks-Russ","727) 322-8023",27,5400]
["Pack","0307","YMCA - Lynch Elementary","LaRhonda Brooks-Russ","727) 322-8023",32,6400]
["Pack","0308","YMCA - Perkins Elementary","Sharon Anne Smith","ssmith@stpeteymca.org",38,7600]
["Pack","0309","YMCA - Maximo Peace Keepers","Angela Lampley Hazley","(727) 768-7401",33,6600]
["Pack","0311","YMCA of Sexton Elementary School","LaRhonda Brooks-Russ","727) 322-8023",38,7600]
["Pack","0318","St Lukes United Methodist Church","Vincent Dominque Hovermale","(727) 323-1001",11,2200]
["Pack","0334","Clearview United Methodist Ch Mens","William Anthony Brown, Jr","(727) 317-8202",32,6400]
["Post","0980","St Petersburg Police Department","Janie Kay Staples","(727) 430-3421",28,5600]
["Post","0995","Gulfport Police Department","Jason John Motte","jmotte@mygulfport.us",7,1400]
["Ship","0912","Eckerd College","Bruce Allen Rodgers","(727) 823-0053",12,2400]
["Ship","0915","Gulfport Youth Sailing Inc","Joel Albert Heyne","(727) 345-5760",29,5800]
["Troop","0209","St Paul's Catholic Church","Thomas Gerard Loney","(727) 894-0526",17,3400]
["Troop","0219","St Raphaels Roman Catholic Church","John Patrick Tredo, Sr","(727) 525-2332",54,10800]
["Troop","0223","Mt Zion Human Services, Inc","Clemmie Lee Thompson","(727) 321-4058",5,1000]
["Troop","0236","First United Methodist Church","Grant David Crockett","(727) 323-9771",20,4000]
["Troop","0261","Riviera United Methodist Church","Todd Patrick Kennedy","(727) 798-7983",20,4000]
["Troop","0262","Hope Lutheran Church","Terry James Odell","(727) 405-5049",10,2000]
["Troop","0263","Holy Family Catholic Church","Matthew Scott Smith","(727) 217-9048",47,9400]
["Troop","0285","Palm Lake Christian Church","Steven Wydea Zachem","szachem@gmail.com",16,3200]
["Troop","0295","New Faith Free Methodist Church","Kenneth Shawn Balkman","ken.balkman@gmail.com",10,2000]
["Troop","0301","Pasadena Presbyterian Church","Deborah Lee Turner","(727) 742-0369",11,2200]
["Troop","0305","Wesley Memorial United Methodist Ch","Thomas Pina Bulu, Jr","(727) 421-4680",28,5600]
["Troop","0318","St Lukes United Methodist Church","James Michael Howden","(727) 458-9361",9,1800]
["Troop","0334","Clearview United Methodist Church M","Patrick Barrington Moran","(727) 321-6408",38,7600]
["Troop","0367","St Judes Catholic Church","Steven John Luther","(727) 384-2801",5,1000]
["."]

{"sheet":"Miccosukee","index":8,"n_rows":68,"n_cols":7,"rows_kept":68,"cut":false,"hidden":false,"merged":[]}
["unit","number","organization_name","Contact Name","Contact Phone","Year end number","Unit Goal"]
["Crew",10,"First Presbyterian Church of Dunedi","Jeffry Michael Barnett","727-460-0610",7,1400]
["Crew",135,"Heritage United Methodist Church",null,null,10,2000]
["Crew",222,"North Dunedin Baptist Church",null,null,17,3400]
["Crew",337,"First Baptist Church Pinellas Park",null,null,8,1600]
["Crew",340,"Mens Club Of Seminole United Method","Sonja Snyder","727-319-6330",null,0]
["Crew",404,"St Catherine Of Siena Catholic Chur",null,null,8,1600]
["Crew",416,"Presbyterian Church Of Palm Harbor","Robert Cliff","727-789-6306",6,1200]
["Crew",434,"St Alfreds Episcopal Church",null,null,6,1200]
["Pack",9,"St. Ignatius Catholic Church","Tara Suzanne Greenawald","(727) 542-2317",13,2600]
["Pack",10,"First Presbyterian Church of Dunedi",null,null,55,11000]
["Pack",26,"Palm Harbor United Methodist Church",null,null,63,12600]
["Pack ",43,"Church of the Holy Spirit Inc","Ryan Michael Stuart","(727) 463-1615",48,9600]
["Pack ",48,"First United Methodist Church",null,null,11,2200]
["Pack",64,"Community United Methodist Church",null,null,11,2200]
["Pack ",84,"LDS Clearwater Ward St Pete Stake","Valenti Kyner","970-712-8172",10,2000]
["Pack ",85,"LDS Palm harbor Stake",null,null,6,1200]
["Pack",135,"Heritage United Methodist Church","Frank Logan Webb","(727) 797-6079",55,11000]
["Pack",279,"LDS-Seminole Ward-St.Pete Stake","Eun-Jeong Scott","(719) 439-7062",31,6200]
["Pack",313,"Church Of Scientology","Shaun Anderson","727-688-2665",32,6400]
["Pack ",321,"Aldersgate United Methodist Church",null,null,null,0]
["Pack ",337,"First Baptist Church Pinellas Park","Sarah Mills","727-545-9231",43,8600]
["Pack ",371,"Christ The King Lutheran Church",null,null,50,10000]
["Pack ",404,"St Catherine Of Siena Catholic Chur","Charles Jason Love","(727) 501-3402",41,8200]
["Pack",407,"East Lake United Methodist Church","Norman Andrew Peterson","(727) 772-1976",26,5200]
["Pack ",413,"Northwood Presbyterian Church",null,null,47,9400]
["Pack ",417,"Largo Elks Lodge 2159 BPOE",null,null,38,7600]
["Pack ",422,"Our Lady Of Lourdes Catholic Church",null,null,33,6600]
["Pack",431,"Blessed Sacrament Church","Michael Keeser","727-742-1647",null,0]
["Pack ",468,"St Paul's United Methodist Church",null,null,19,3800]
["Pack",475,"Lutheran Church Of The Resurrection","Jeffrey Thomas Murphy","(727) 470-1333",117,23400]
["Pack ",484,"First Lutheran Church",null,null,20,4000]
["Pack",487,"Espiritu Santo Catholic Church","William Badman","813-854-3671",33,6600]
["Pack ",600,"Mt Olive AME Church","Nova Ann Wagner","(727) 748-3230",19,3800]
["Post","0900","Pinellas County Sheriffs Office","Alyson Marie Towne","727) 534-8016",42,8400]
["Post","0912","Pinellas Park Police Dept","Benson Dimaculangan","bdimaculangan@pinellas-park.com",19,3800]
["Ship","0956","Episcopal Church Of The Ascension","Douglas John Westphal","(727) 452-4004",19,3800]
["Troop","0009","St Ignatius Catholic Church","Tyler J Bohlender","727) 934-1785",29,5800]
["Troop","0010","First Presbyterian Church of Dunedi","Jeffry Michael Barnett","(727) 460-0610",13,2600]
["Troop","0026","Palm Harbor United Methodist Church","Julie Hanson Losee","(727) 786-0044",31,6200]
["Troop","0048","First United Methodist Church","Peter Robert Silva","(727) 215-6440",17,3400]
["Troop","0064","Community United Methodist Church","Vance William Brammer","vwbrammer@yahoo.com",22,4400]
["Troop","0084","LDS - Clearwater Ward - St Pete Sta","James Richard Opp","(239) 989-4216",16,3200]
["Troop","0085","LDS - Palm Harbor Ward - St Pete St","Derek Richard Lowe","(407) 970-5404",25,5000]
["Troop","0094","VFW Post 10094","Allan Lee Gormont","(727) 644-8073",12,2400]
["Troop","0106","St Nicholas Greek Orthodox Church","Rickey Eugene Hardin","(727) 937-8723",8,1600]
["Troop","0135","Heritage United Methodist Church","Christopher Robert Daley","(727) 796-3823",35,7000]
["Troop","0279","LDS - Seminole  Ward - St Pete Stak","Guy Borgeson","(727) 526-8067",22,4400]
["Troop","0313","Church Of Scientology","Steven Charles Lund","(727) 791-6624",17,3400]
["Troop","0321","Aldersgate United Methodist Church","Thomas David Hart, III","(727) 322-9434",22,4400]
["Troop","0337","First Baptist Church Pinellas Park","Jeffery Eugene Mills","(727) 545-9231",29,5800]
["Troop","0340","Mens Club Of Seminole United Method","David Charles Moore","mooredc33.scouts@gmail.com",17,3400]
["Troop","0355","Oakhurst United Methodist Church","Timothy Patrick Adams","(727) 393-9640",12,2400]
["Troop","0371","Christ The King Lutheran Church","Raymond Francis Siewert, III","RKSiewert@msn.com",29,5800]
["Troop","0375","Sacred Heart Church","Lonny Paul Palardy","727) 417-8812",14,2800]
["Troop","0404","St Catherine Of Siena Catholic Chur","Benjamin Frederic Benson","727-415-1506",27,5400]
["Troop","0407","East Lake United Methodist Church","Cheryl Ann Zawacki Dorweiler","(727) 938-6956",25,5000]
["Troop","0413","Northwood Presbyterian Church","David Gibson Hamilton, Sr","(727) 791-0910",51,10200]
["Troop","0416","Presbyterian Church Of Palm Harbor","David Brian Schafer","(727) 475-8539",23,4600]
["Troop","0417","Largo Elks Lodge 2159 BPOE","Robert Michael James","(727) 319-8211",33,6600]
["Troop","0422","Our Lady Of Lourdes Catholic Church","Kenneth Edward Madley","(727) 432-8233",30,6000]
["Troop","0431","Blessed Sacrament Church","Thomas Coon","727) 698-9766",14,2800]
["Troop","0468","St Paul's United Methodist Church","Kenneth William Mason","(727) 543-7614",22,4400]
["Troop","0475","Lutheran Church Of The Resurrection","Harry Matthew Betz","727) 459-7306",64,12800]
["Troop","0484","First Lutheran Church","Douglas James Moody","(727) 449-2499",32,6400]
["Troop","0487","Espiritu Santo Catholic Church","Michael McCarthy","(727) 781-3000",21,4200]
["Troop","0600","Mt Olive AME Church","Donna MacK","727) 734-7882",5,1000]
["Troop","2519","Seminole Elks Lodge #2519","Joseph J Fletcher","jflet_17@yahoo.com",12,2400]